[Event "Titled Tuesday Blitz March 07 Early 2023"]
[White "Prudnykova, Olga"]
[Black "UNSTOPPABLE_LEGEND"]
[WhiteFideId "14121093"]
[WhiteElo "2113"]
[BlackElo "2476"]
[Result "0-1"]
[Round "11"]
[TimeControl "180+2"]
[Date "2023.03.07"]
[WhiteClock "0:00:09"]
[BlackClock "0:00:09"]

1. e4 {[%clk 0:02:57]}  e6 {[%clk 0:02:59]} 2. d4 {[%clk 0:02:56]}  d5 {[%clk 0:03:00]} 3. Nc3 {[%clk 0:02:57]}  Nf6 {[%clk 0:02:59]} 4. e5 {[%clk 0:02:57]}  Nfd7 {[%clk 0:02:59]} 5. Qh5 {[%clk 0:02:56]}  c5 {[%clk 0:02:57]} 6. Nf3 {[%clk 0:02:56]}  Nc6 {[%clk 0:02:55]} 7. Ng5 {[%clk 0:02:56]}  g6 {[%clk 0:02:49]} 8. Qf3 {[%clk 0:02:55]}  Ndxe5 {[%clk 0:02:35]} 9. dxe5 {[%clk 0:02:54]}  Nxe5 {[%clk 0:02:36]} 10. Bb5+ {[%clk 0:02:53]}  Bd7 {[%clk 0:02:35]} 11. Bxd7+ {[%clk 0:02:52]}  Kxd7 {[%clk 0:02:19]} 12. Qg3 {[%clk 0:02:52]}  Bd6 {[%clk 0:02:16]} 13. Bf4 {[%clk 0:02:50]}  f6 {[%clk 0:02:11]} 14. Nf3 {[%clk 0:02:49]}  Qc7 {[%clk 0:02:07]} 15. O-O-O {[%clk 0:02:36]}  Nd3+ {[%clk 0:01:49]} 16. Kb1 {[%clk 0:02:35]}  Nxf4 {[%clk 0:01:44]} 17. Rhe1 {[%clk 0:02:15]}  Rae8 {[%clk 0:01:23]} 18. Nb5 {[%clk 0:02:07]}  Qb6 {[%clk 0:01:23]} 19. Nxd6 {[%clk 0:02:02]}  Qxd6 {[%clk 0:01:23]} 20. Nd2 {[%clk 0:02:00]}  Nh5 {[%clk 0:01:14]} 21. Qh4 {[%clk 0:02:00]}  Kc7 {[%clk 0:00:45]} 22. g4 {[%clk 0:01:44]}  Qf4 {[%clk 0:00:43]} 23. f3 {[%clk 0:01:36]}  Ng7 {[%clk 0:00:42]} 24. Rf1 {[%clk 0:01:29]}  h5 {[%clk 0:00:41]} 25. Qf2 {[%clk 0:01:24]}  b6 {[%clk 0:00:40]} 26. Qe2 {[%clk 0:01:18]}  Qe5 {[%clk 0:00:19]} 27. Qa6 {[%clk 0:01:17]}  Kb8 {[%clk 0:00:19]} 28. a4 {[%clk 0:01:12]}  Qc7 {[%clk 0:00:19]} 29. h3 {[%clk 0:01:09]}  hxg4 {[%clk 0:00:19]} 30. hxg4 {[%clk 0:01:08]}  g5 {[%clk 0:00:19]} 31. Nb3 {[%clk 0:01:06]}  Qb7 {[%clk 0:00:17]} 32. Qe2 {[%clk 0:01:03]}  Qd7 {[%clk 0:00:16]} 33. a5 {[%clk 0:01:03]}  Qc6 {[%clk 0:00:14]} 34. f4 {[%clk 0:01:01]}  gxf4 {[%clk 0:00:14]} 35. Rxf4 {[%clk 0:01:00]}  e5 {[%clk 0:00:14]} 36. Rff1 {[%clk 0:00:59]}  Rhf8 {[%clk 0:00:14]} 37. Qh2 {[%clk 0:00:54]}  Ne6 {[%clk 0:00:14]} 38. Qh1 {[%clk 0:00:51]}  c4 {[%clk 0:00:13]} 39. Nc1 {[%clk 0:00:49]}  e4 {[%clk 0:00:13]} 40. axb6 {[%clk 0:00:46]}  c3 {[%clk 0:00:12]} 41. bxa7+ {[%clk 0:00:31]}  Ka8 {[%clk 0:00:12]} 42. Nb3 {[%clk 0:00:28]}  cxb2 {[%clk 0:00:12]} 43. Kxb2 {[%clk 0:00:18]}  Rc8 {[%clk 0:00:12]} 44. Rc1 {[%clk 0:00:18]}  Qc3+ {[%clk 0:00:12]} 45. Kb1 {[%clk 0:00:18]}  Nd4 {[%clk 0:00:10]} 46. Nxd4 {[%clk 0:00:10]}  Qxd4 {[%clk 0:00:10]} 47. Qg1 {[%clk 0:00:10]}  Rb8+ {[%clk 0:00:09]} 48. axb8=Q+ {[%clk 0:00:09]}  Rxb8+ {[%clk 0:00:09]} 49. Ka2 {[%clk 0:00:09]}  Qa4# {[%clk 0:00:09]} 0-1


[Site "https://www.chess.com"]

[Event "Titled Tuesday Blitz March 07 Early 2023"]
[White "Mushini Ajay"]
[Black "Balla, Tamas-Kristof"]
[WhiteFideId "35066188"]
[BlackFideId "1208497"]
[WhiteElo "2145"]
[BlackElo "2334"]
[Result "0-1"]
[Round "11"]
[TimeControl "180+2"]
[Date "2023.03.07"]
[WhiteClock "0:00:05"]
[BlackClock "0:00:15"]

1. e4 {[%clk 0:02:55]}  c5 {[%clk 0:02:59]} 2. Nf3 {[%clk 0:02:55]}  Nc6 {[%clk 0:02:59]} 3. d4 {[%clk 0:02:55]}  cxd4 {[%clk 0:03:00]} 4. Nxd4 {[%clk 0:02:54]}  e5 {[%clk 0:03:00]} 5. Nb5 {[%clk 0:02:54]}  d6 {[%clk 0:03:01]} 6. N1c3 {[%clk 0:02:52]}  a6 {[%clk 0:03:01]} 7. Na3 {[%clk 0:02:52]}  b5 {[%clk 0:03:01]} 8. Nd5 {[%clk 0:02:53]}  Nge7 {[%clk 0:03:01]} 9. c4 {[%clk 0:02:45]}  Nxd5 {[%clk 0:03:01]} 10. exd5 {[%clk 0:02:42]}  Nd4 {[%clk 0:03:01]} 11. cxb5 {[%clk 0:02:42]}  Bd7 {[%clk 0:03:01]} 12. Bd3 {[%clk 0:02:29]}  axb5 {[%clk 0:02:50]} 13. O-O {[%clk 0:02:29]}  Be7 {[%clk 0:02:49]} 14. Be3 {[%clk 0:02:26]}  Nf5 {[%clk 0:02:21]} 15. Bxf5 {[%clk 0:02:02]}  Bxf5 {[%clk 0:02:20]} 16. Nxb5 {[%clk 0:02:03]}  O-O {[%clk 0:02:19]} 17. a4 {[%clk 0:02:03]}  Bd7 {[%clk 0:02:12]} 18. Qb3 {[%clk 0:01:44]}  f5 {[%clk 0:02:08]} 19. a5 {[%clk 0:01:40]}  f4 {[%clk 0:02:08]} 20. Bb6 {[%clk 0:01:39]}  Qe8 {[%clk 0:01:54]} 21. Nc7 {[%clk 0:01:38]}  Qg6 {[%clk 0:01:52]} 22. Nxa8 {[%clk 0:01:33]}  f3 {[%clk 0:01:52]} 23. g3 {[%clk 0:01:30]}  Qg4 {[%clk 0:01:47]} 24. Kh1 {[%clk 0:01:20]}  Rf6 {[%clk 0:01:42]} 25. Be3 {[%clk 0:01:00]}  g5 {[%clk 0:01:41]} 26. Bxg5 {[%clk 0:00:13]}  Qxg5 {[%clk 0:01:37]} 27. Nb6 {[%clk 0:00:14]}  Rh6 {[%clk 0:00:54]} 28. Qe3 {[%clk 0:00:12]}  Qh5 {[%clk 0:00:46]} 29. Qxh6 {[%clk 0:00:09]}  Qxh6 {[%clk 0:00:45]} 30. Nxd7 {[%clk 0:00:10]}  Qh3 {[%clk 0:00:45]} 31. Rg1 {[%clk 0:00:10]}  Qxd7 {[%clk 0:00:45]} 32. a6 {[%clk 0:00:10]}  Qa7 {[%clk 0:00:39]} 33. b4 {[%clk 0:00:10]}  Bd8 {[%clk 0:00:39]} 34. b5 {[%clk 0:00:10]}  Bb6 {[%clk 0:00:38]} 35. Rac1 {[%clk 0:00:10]}  Bxf2 {[%clk 0:00:35]} 36. Rgf1 {[%clk 0:00:11]}  e4 {[%clk 0:00:34]} 37. Rc6 {[%clk 0:00:09]}  e3 {[%clk 0:00:34]} 38. Rfc1 {[%clk 0:00:05]}  e2 {[%clk 0:00:32]} 39. Rc8+ {[%clk 0:00:05]}  Kg7 {[%clk 0:00:30]} 40. R8c7+ {[%clk 0:00:06]}  Qxc7 {[%clk 0:00:17]} 41. Rxc7+ {[%clk 0:00:07]}  Kf6 {[%clk 0:00:18]} 42. Rc1 {[%clk 0:00:07]}  Bb6 {[%clk 0:00:16]} 43. g4 {[%clk 0:00:03]}  f2 {[%clk 0:00:16]} 44. g5+ {[%clk 0:00:04]}  Kxg5 {[%clk 0:00:16]} 45. Kg2 {[%clk 0:00:05]}  e1=Q {[%clk 0:00:15]} 46. h3 {[%clk 0:00:05]}  Qxc1 {[%clk 0:00:15]} 0-1


[Site "https://www.chess.com"]

[Event "Titled Tuesday Blitz March 07 Early 2023"]
[White "Mouhamad, Joachim"]
[Black "Mikhaylova, Irina"]
[WhiteFideId "656410"]
[BlackFideId "4109040"]
[WhiteElo "2164"]
[BlackElo "1966"]
[Result "1-0"]
[Round "11"]
[TimeControl "180+2"]
[Date "2023.03.07"]
[WhiteClock "0:00:31"]
[BlackClock "0:00:06"]

1. e4 {[%clk 0:03:00]}  c5 {[%clk 0:02:59]} 2. Nf3 {[%clk 0:02:59]}  Nc6 {[%clk 0:03:00]} 3. d4 {[%clk 0:02:59]}  cxd4 {[%clk 0:03:00]} 4. Nxd4 {[%clk 0:03:00]}  e5 {[%clk 0:03:00]} 5. Nb5 {[%clk 0:03:01]}  d6 {[%clk 0:03:01]} 6. N1c3 {[%clk 0:03:00]}  a6 {[%clk 0:03:00]} 7. Na3 {[%clk 0:03:00]}  b5 {[%clk 0:03:01]} 8. Nd5 {[%clk 0:03:01]}  Nge7 {[%clk 0:03:02]} 9. c4 {[%clk 0:02:59]}  Nd4 {[%clk 0:03:02]} 10. Be3 {[%clk 0:02:56]}  Nxd5 {[%clk 0:03:01]} 11. cxd5 {[%clk 0:02:57]}  Be7 {[%clk 0:03:01]} 12. Qd2 {[%clk 0:02:47]}  O-O {[%clk 0:02:53]} 13. Bd3 {[%clk 0:02:45]}  Bb7 {[%clk 0:02:51]} 14. Nc2 {[%clk 0:02:39]}  Nxc2+ {[%clk 0:02:50]} 15. Bxc2 {[%clk 0:02:40]}  h6 {[%clk 0:02:38]} 16. h4 {[%clk 0:02:17]}  Kh7 {[%clk 0:02:10]} 17. g3 {[%clk 0:02:14]}  Qd7 {[%clk 0:01:45]} 18. O-O-O {[%clk 0:02:06]}  Rac8 {[%clk 0:01:32]} 19. Kb1 {[%clk 0:02:05]}  Rc4 {[%clk 0:01:08]} 20. Bd3 {[%clk 0:02:01]}  Rc7 {[%clk 0:01:02]} 21. f4 {[%clk 0:01:54]}  f6 {[%clk 0:00:40]} 22. f5 {[%clk 0:01:44]}  Rfc8 {[%clk 0:00:24]} 23. g4 {[%clk 0:01:42]}  Kg8 {[%clk 0:00:17]} 24. Rhg1 {[%clk 0:01:37]}  Kf7 {[%clk 0:00:15]} 25. g5 {[%clk 0:01:33]}  hxg5 {[%clk 0:00:15]} 26. hxg5 {[%clk 0:01:34]}  Rg8 {[%clk 0:00:16]} 27. g6+ {[%clk 0:01:30]}  Ke8 {[%clk 0:00:15]} 28. Bb6 {[%clk 0:01:27]}  Rc8 {[%clk 0:00:14]} 29. Rh1 {[%clk 0:01:24]}  Bd8 {[%clk 0:00:14]} 30. Be3 {[%clk 0:01:21]}  Qc7 {[%clk 0:00:14]} 31. Rh7 {[%clk 0:01:13]}  Qa5 {[%clk 0:00:14]} 32. Qf2 {[%clk 0:01:06]}  Qc7 {[%clk 0:00:10]} 33. Rc1 {[%clk 0:01:03]}  Qd7 {[%clk 0:00:10]} 34. Rch1 {[%clk 0:01:03]}  Qc7 {[%clk 0:00:10]} 35. Rh8 {[%clk 0:01:02]}  Rxh8 {[%clk 0:00:06]} 36. Rxh8+ {[%clk 0:01:03]}  Kd7 {[%clk 0:00:06]} 37. Rg8 {[%clk 0:00:54]}  Be7 {[%clk 0:00:06]} 38. Rxg7 {[%clk 0:00:53]}  Re8 {[%clk 0:00:06]} 39. Rf7 {[%clk 0:00:53]}  Rg8 {[%clk 0:00:05]} 40. Rh7 {[%clk 0:00:49]}  Ke8 {[%clk 0:00:05]} 41. Bb6 {[%clk 0:00:48]}  Qc8 {[%clk 0:00:05]} 42. Qh4 {[%clk 0:00:36]}  Bd8 {[%clk 0:00:05]} 43. Bxd8 {[%clk 0:00:31]}  Kxd8 {[%clk 0:00:06]} 44. Qxf6+ {[%clk 0:00:31]} 1-0


[Site "https://www.chess.com"]

[Event "Titled Tuesday Blitz March 07 Early 2023"]
[White "Szente Varga, Fruzsina"]
[Black "Avazkhonov, Alikhon"]
[WhiteFideId "712264"]
[BlackFideId "14208504"]
[WhiteElo "1994"]
[BlackElo "1739"]
[Result "1-0"]
[Round "11"]
[TimeControl "180+2"]
[Date "2023.03.07"]
[WhiteClock "0:00:21"]
[BlackClock "0:00:04"]

1. e4 {[%clk 0:03:00]}  c5 {[%clk 0:02:57]} 2. Nf3 {[%clk 0:02:58]}  d6 {[%clk 0:02:57]} 3. d4 {[%clk 0:02:58]}  cxd4 {[%clk 0:02:58]} 4. Qxd4 {[%clk 0:02:56]}  Nc6 {[%clk 0:02:54]} 5. Bb5 {[%clk 0:02:56]}  Bd7 {[%clk 0:02:51]} 6. Qd3 {[%clk 0:02:54]}  Nf6 {[%clk 0:02:51]} 7. c4 {[%clk 0:02:54]}  e6 {[%clk 0:02:45]} 8. Nc3 {[%clk 0:02:54]}  a6 {[%clk 0:02:45]} 9. Bxc6 {[%clk 0:02:52]}  Bxc6 {[%clk 0:02:46]} 10. O-O {[%clk 0:02:52]}  Be7 {[%clk 0:02:46]} 11. h3 {[%clk 0:02:52]}  O-O {[%clk 0:02:47]} 12. Be3 {[%clk 0:02:52]}  Qc7 {[%clk 0:02:46]} 13. Nd4 {[%clk 0:02:47]}  Bd7 {[%clk 0:02:44]} 14. Rac1 {[%clk 0:02:42]}  Rfd8 {[%clk 0:02:41]} 15. b4 {[%clk 0:02:28]}  Rac8 {[%clk 0:02:15]} 16. Nce2 {[%clk 0:02:26]}  b6 {[%clk 0:02:15]} 17. Nb3 {[%clk 0:02:16]}  Qb7 {[%clk 0:02:15]} 18. Ng3 {[%clk 0:02:12]}  d5 {[%clk 0:02:11]} 19. cxd5 {[%clk 0:02:09]}  exd5 {[%clk 0:02:12]} 20. e5 {[%clk 0:02:09]}  Ne4 {[%clk 0:01:53]} 21. Nxe4 {[%clk 0:01:57]}  dxe4 {[%clk 0:01:54]} 22. Qd4 {[%clk 0:01:58]}  Bb5 {[%clk 0:01:50]} 23. Qxb6 {[%clk 0:01:54]}  Qxb6 {[%clk 0:01:12]} 24. Bxb6 {[%clk 0:01:55]}  Re8 {[%clk 0:01:13]} 25. Rfe1 {[%clk 0:01:44]}  Bxb4 {[%clk 0:00:45]} 26. Rxe4 {[%clk 0:01:43]}  Ba3 {[%clk 0:00:46]} 27. Rxc8 {[%clk 0:01:17]}  Rxc8 {[%clk 0:00:47]} 28. Nd4 {[%clk 0:01:18]}  Bd7 {[%clk 0:00:22]} 29. Re3 {[%clk 0:01:09]}  Bc1 {[%clk 0:00:15]} 30. Rd3 {[%clk 0:01:03]}  Bf4 {[%clk 0:00:14]} 31. Ne2 {[%clk 0:01:02]}  Bb5 {[%clk 0:00:06]} 32. Nxf4 {[%clk 0:01:02]}  Bxd3 {[%clk 0:00:06]} 33. Nxd3 {[%clk 0:01:03]}  Rc3 {[%clk 0:00:06]} 34. Nc5 {[%clk 0:00:59]}  Ra3 {[%clk 0:00:06]} 35. g3 {[%clk 0:00:43]}  Rxa2 {[%clk 0:00:06]} 36. Kg2 {[%clk 0:00:32]}  a5 {[%clk 0:00:06]} 37. Kf3 {[%clk 0:00:32]}  a4 {[%clk 0:00:07]} 38. Ke3 {[%clk 0:00:29]}  a3 {[%clk 0:00:07]} 39. Nd3 {[%clk 0:00:23]}  Rc2 {[%clk 0:00:02]} 40. Bd4 {[%clk 0:00:23]}  a2 {[%clk 0:00:02]} 41. Nb4 {[%clk 0:00:23]}  Rc4 {[%clk 0:00:01]} 42. Nxa2 {[%clk 0:00:23]}  Kf8 {[%clk 0:00:02]} 43. Nc3 {[%clk 0:00:23]}  Ke7 {[%clk 0:00:02]} 44. Ke4 {[%clk 0:00:23]}  Ke6 {[%clk 0:00:03]} 45. Nd5 {[%clk 0:00:22]}  f5+ {[%clk 0:00:03]} 46. exf6 {[%clk 0:00:22]}  gxf6 {[%clk 0:00:04]} 47. Nf4+ {[%clk 0:00:22]}  Kf7 {[%clk 0:00:03]} 48. Kd5 {[%clk 0:00:22]}  Ra4 {[%clk 0:00:04]} 49. Be3 {[%clk 0:00:22]}  Ra2 {[%clk 0:00:05]} 50. Nh5 {[%clk 0:00:21]}  Kg6 {[%clk 0:00:05]} 51. Nf4+ {[%clk 0:00:21]}  Kf5 {[%clk 0:00:05]} 52. g4+ {[%clk 0:00:21]}  Kg5 {[%clk 0:00:06]} 53. Ke4 {[%clk 0:00:20]}  Ra4+ {[%clk 0:00:05]} 54. Kf3 {[%clk 0:00:21]}  Kh4 {[%clk 0:00:05]} 55. Kg2 {[%clk 0:00:20]}  Ra2 {[%clk 0:00:05]} 56. Nd5 {[%clk 0:00:20]}  Ra6 {[%clk 0:00:03]} 57. Bd4 {[%clk 0:00:20]}  Rd6 {[%clk 0:00:03]} 58. Bxf6+ {[%clk 0:00:19]}  Rxf6 {[%clk 0:00:03]} 59. Nxf6 {[%clk 0:00:20]}  Kg5 {[%clk 0:00:03]} 60. Ne4+ {[%clk 0:00:21]}  Kf4 {[%clk 0:00:04]} 61. Nf6 {[%clk 0:00:21]} 1-0


[Site "https://www.chess.com"]

[Event "Titled Tuesday Blitz March 07 Early 2023"]
[White "Koridze, Lile"]
[Black "Tsatsalashvili, Keti"]
[WhiteFideId "13612514"]
[BlackFideId "13603434"]
[WhiteElo "2047"]
[BlackElo "2220"]
[Result "1-0"]
[Round "11"]
[TimeControl "180+2"]
[Date "2023.03.07"]
[WhiteClock "0:00:12"]
[BlackClock "0:00:02"]

1. d4 {[%clk 0:03:00]}  Nf6 {[%clk 0:02:59]} 2. c4 {[%clk 0:03:00]}  e6 {[%clk 0:03:00]} 3. Nf3 {[%clk 0:03:00]}  d5 {[%clk 0:03:00]} 4. g3 {[%clk 0:03:00]}  Be7 {[%clk 0:02:57]} 5. Bg2 {[%clk 0:03:00]}  O-O {[%clk 0:02:57]} 6. O-O {[%clk 0:03:00]}  dxc4 {[%clk 0:02:54]} 7. Ne5 {[%clk 0:02:59]}  c5 {[%clk 0:02:49]} 8. dxc5 {[%clk 0:02:58]}  Qc7 {[%clk 0:02:36]} 9. Nxc4 {[%clk 0:02:57]}  Qxc5 {[%clk 0:02:34]} 10. b3 {[%clk 0:02:49]}  Rd8 {[%clk 0:02:28]} 11. Qe1 {[%clk 0:02:40]}  a6 {[%clk 0:02:18]} 12. Ba3 {[%clk 0:02:39]}  Qc7 {[%clk 0:02:18]} 13. Bxe7 {[%clk 0:02:39]}  Qxe7 {[%clk 0:02:19]} 14. Nc3 {[%clk 0:02:40]}  Nc6 {[%clk 0:02:14]} 15. Nb6 {[%clk 0:02:31]}  Rb8 {[%clk 0:02:14]} 16. Nxc8 {[%clk 0:02:32]}  Rbxc8 {[%clk 0:02:14]} 17. Na4 {[%clk 0:02:31]}  Nd4 {[%clk 0:02:01]} 18. Rd1 {[%clk 0:02:25]}  b5 {[%clk 0:01:52]} 19. Nb6 {[%clk 0:00:51]}  Rb8 {[%clk 0:01:48]} 20. e3 {[%clk 0:00:49]}  Nxb3 {[%clk 0:00:45]} 21. axb3 {[%clk 0:00:32]}  Rxb6 {[%clk 0:00:44]} 22. Qa5 {[%clk 0:00:32]}  Rbd6 {[%clk 0:00:40]} 23. Rc1 {[%clk 0:00:31]}  h6 {[%clk 0:00:34]} 24. Bf3 {[%clk 0:00:28]}  Nd5 {[%clk 0:00:34]} 25. Rfd1 {[%clk 0:00:25]}  Qd7 {[%clk 0:00:28]} 26. e4 {[%clk 0:00:21]}  Ne7 {[%clk 0:00:24]} 27. e5 {[%clk 0:00:19]}  Rd2 {[%clk 0:00:19]} 28. Qxa6 {[%clk 0:00:16]}  Rb8 {[%clk 0:00:11]} 29. Rxd2 {[%clk 0:00:13]}  Qxd2 {[%clk 0:00:12]} 30. Rd1 {[%clk 0:00:14]}  Qc3 {[%clk 0:00:11]} 31. Qd6 {[%clk 0:00:12]}  Re8 {[%clk 0:00:08]} 32. Rd3 {[%clk 0:00:11]}  Qc1+ {[%clk 0:00:07]} 33. Kg2 {[%clk 0:00:11]}  Nf5 {[%clk 0:00:06]} 34. Qd7 {[%clk 0:00:10]}  Rf8 {[%clk 0:00:06]} 35. Qxb5 {[%clk 0:00:10]}  Qb1 {[%clk 0:00:04]} 36. Qc4 {[%clk 0:00:09]}  Rb8 {[%clk 0:00:04]} 37. Rc3 {[%clk 0:00:09]}  Rf8 {[%clk 0:00:03]} 38. Be4 {[%clk 0:00:09]}  Qd1 {[%clk 0:00:03]} 39. Bxf5 {[%clk 0:00:09]}  exf5 {[%clk 0:00:04]} 40. b4 {[%clk 0:00:09]}  Qe1 {[%clk 0:00:04]} 41. b5 {[%clk 0:00:09]}  Qxe5 {[%clk 0:00:03]} 42. Qc5 {[%clk 0:00:09]}  Qxc5 {[%clk 0:00:03]} 43. Rxc5 {[%clk 0:00:09]}  g6 {[%clk 0:00:03]} 44. Kf3 {[%clk 0:00:08]}  Rb8 {[%clk 0:00:04]} 45. Kf4 {[%clk 0:00:09]}  Kg7 {[%clk 0:00:05]} 46. Ke5 {[%clk 0:00:09]}  Re8+ {[%clk 0:00:05]} 47. Kd6 {[%clk 0:00:09]}  Re2 {[%clk 0:00:05]} 48. b6 {[%clk 0:00:08]}  Rxf2 {[%clk 0:00:05]} 49. Rb5 {[%clk 0:00:07]}  Rd2+ {[%clk 0:00:04]} 50. Kc5 {[%clk 0:00:07]}  Rd8 {[%clk 0:00:04]} 51. b7 {[%clk 0:00:07]}  Rb8 {[%clk 0:00:04]} 52. Kc6 {[%clk 0:00:08]}  g5 {[%clk 0:00:04]} 53. Kc7 {[%clk 0:00:08]}  Re8 {[%clk 0:00:05]} 54. b8=Q {[%clk 0:00:08]}  Rxb8 {[%clk 0:00:05]} 55. Rxb8 {[%clk 0:00:09]}  Kf6 {[%clk 0:00:05]} 56. Rb6+ {[%clk 0:00:10]}  Ke5 {[%clk 0:00:03]} 57. Rxh6 {[%clk 0:00:10]}  f4 {[%clk 0:00:04]} 58. gxf4+ {[%clk 0:00:10]}  Kxf4 {[%clk 0:00:04]} 59. Rh7 {[%clk 0:00:11]}  f5 {[%clk 0:00:05]} 60. Kd6 {[%clk 0:00:10]}  g4 {[%clk 0:00:05]} 61. Kd5 {[%clk 0:00:11]}  Kf3 {[%clk 0:00:05]} 62. Ke5 {[%clk 0:00:11]}  f4 {[%clk 0:00:05]} 63. Rf7 {[%clk 0:00:11]}  g3 {[%clk 0:00:06]} 64. Rxf4+ {[%clk 0:00:11]}  Kg2 {[%clk 0:00:03]} 65. hxg3 {[%clk 0:00:11]}  Kxg3 {[%clk 0:00:02]} 66. Ke4 {[%clk 0:00:12]} 1-0


[Site "https://www.chess.com"]

[Event "Titled Tuesday Blitz March 07 Early 2023"]
[White "Sovetbekova, Nurai"]
[Black "Hoffmann, Asa"]
[WhiteFideId "13801910"]
[BlackFideId "2001470"]
[WhiteElo "1857"]
[BlackElo "2117"]
[Result "0-1"]
[Round "11"]
[TimeControl "180+2"]
[Date "2023.03.07"]
[WhiteClock "0:00:46"]
[BlackClock "0:00:47"]

1. d4 {[%clk 0:03:00]}  Nf6 {[%clk 0:02:39]} 2. c4 {[%clk 0:03:00]}  c5 {[%clk 0:02:39]} 3. d5 {[%clk 0:02:59]}  e5 {[%clk 0:02:38]} 4. Nc3 {[%clk 0:02:59]}  d6 {[%clk 0:02:37]} 5. e4 {[%clk 0:02:59]}  Be7 {[%clk 0:02:37]} 6. h3 {[%clk 0:02:58]}  Nbd7 {[%clk 0:02:35]} 7. Nf3 {[%clk 0:02:58]}  Nf8 {[%clk 0:02:35]} 8. Be3 {[%clk 0:02:56]}  Ng6 {[%clk 0:02:35]} 9. Qd2 {[%clk 0:02:55]}  O-O {[%clk 0:02:34]} 10. Bd3 {[%clk 0:02:55]}  a6 {[%clk 0:02:33]} 11. a4 {[%clk 0:02:54]}  b6 {[%clk 0:02:32]} 12. O-O {[%clk 0:02:54]}  Nh5 {[%clk 0:02:31]} 13. Ne2 {[%clk 0:02:50]}  f5 {[%clk 0:02:29]} 14. exf5 {[%clk 0:02:49]}  Bxf5 {[%clk 0:02:28]} 15. Ne1 {[%clk 0:02:46]}  e4 {[%clk 0:02:24]} 16. Bc2 {[%clk 0:02:46]}  Qd7 {[%clk 0:02:13]} 17. f3 {[%clk 0:02:41]}  Ne5 {[%clk 0:02:05]} 18. fxe4 {[%clk 0:02:27]}  Bxh3 {[%clk 0:02:00]} 19. Rxf8+ {[%clk 0:02:14]}  Rxf8 {[%clk 0:01:59]} 20. gxh3 {[%clk 0:02:14]}  Qxh3 {[%clk 0:01:58]} 21. Nf4 {[%clk 0:02:01]}  Qg3+ {[%clk 0:01:39]} 22. Nfg2 {[%clk 0:01:47]}  Nxc4 {[%clk 0:01:35]} 23. Qc3 {[%clk 0:01:24]}  Ne5 {[%clk 0:01:17]} 24. Bd2 {[%clk 0:01:19]}  Nf3+ {[%clk 0:01:10]} 25. Nxf3 {[%clk 0:01:14]}  Rxf3 {[%clk 0:01:09]} 26. Be3 {[%clk 0:01:00]}  Bf6 {[%clk 0:01:05]} 27. Qe1 {[%clk 0:00:59]}  Rxe3 {[%clk 0:01:01]} 28. Qxe3 {[%clk 0:00:56]}  Bd4 {[%clk 0:01:00]} 29. Qxd4 {[%clk 0:00:54]}  cxd4 {[%clk 0:00:59]} 30. Rd1 {[%clk 0:00:53]}  Nf4 {[%clk 0:00:57]} 31. Rd2 {[%clk 0:00:53]}  d3 {[%clk 0:00:53]} 32. Bd1 {[%clk 0:00:52]}  Nxg2 {[%clk 0:00:48]} 33. Rxg2 {[%clk 0:00:46]}  Qe1+ {[%clk 0:00:47]} 34. Kh2 {[%clk 0:00:46]}  Qxd1 {[%clk 0:00:47]} 0-1


[Site "https://www.chess.com"]

[Event "Titled Tuesday Blitz March 07 Early 2023"]
[White "Bruned, Boris"]
[Black "Shevtchenko, Olesya"]
[WhiteFideId "621790"]
[BlackFideId "24131890"]
[WhiteElo "2049"]
[BlackElo "2003"]
[Result "1-0"]
[Round "11"]
[TimeControl "180+2"]
[Date "2023.03.07"]
[WhiteClock "0:00:07"]
[BlackClock "0:01:01"]

1. b3 {[%clk 0:03:00]}  b5 {[%clk 0:02:58]} 2. Bb2 {[%clk 0:03:01]}  Bb7 {[%clk 0:02:58]} 3. a4 {[%clk 0:02:59]}  a6 {[%clk 0:02:58]} 4. e3 {[%clk 0:02:58]}  b4 {[%clk 0:02:57]} 5. d3 {[%clk 0:02:52]}  e6 {[%clk 0:02:57]} 6. Nd2 {[%clk 0:02:52]}  Nf6 {[%clk 0:02:57]} 7. Ngf3 {[%clk 0:02:53]}  d5 {[%clk 0:02:58]} 8. g3 {[%clk 0:02:50]}  Nbd7 {[%clk 0:02:58]} 9. Bg2 {[%clk 0:02:51]}  Bd6 {[%clk 0:02:57]} 10. Qe2 {[%clk 0:02:50]}  O-O {[%clk 0:02:57]} 11. e4 {[%clk 0:02:46]}  e5 {[%clk 0:02:56]} 12. exd5 {[%clk 0:02:37]}  Nxd5 {[%clk 0:02:55]} 13. O-O {[%clk 0:02:27]}  Re8 {[%clk 0:02:44]} 14. Nc4 {[%clk 0:02:14]}  Nc3 {[%clk 0:02:43]} 15. Qd2 {[%clk 0:01:36]}  e4 {[%clk 0:02:42]} 16. Nd4 {[%clk 0:01:36]}  Bc5 {[%clk 0:02:31]} 17. Bxc3 {[%clk 0:01:26]}  bxc3 {[%clk 0:02:30]} 18. Qxc3 {[%clk 0:01:27]}  Qf6 {[%clk 0:02:25]} 19. Ne2 {[%clk 0:01:01]}  Qxc3 {[%clk 0:02:26]} 20. Nxc3 {[%clk 0:00:59]}  Bd4 {[%clk 0:02:26]} 21. Nxe4 {[%clk 0:00:47]}  Bxa1 {[%clk 0:02:24]} 22. Rxa1 {[%clk 0:00:45]}  f5 {[%clk 0:02:22]} 23. Ned6 {[%clk 0:00:37]}  cxd6 {[%clk 0:02:11]} 24. Bxb7 {[%clk 0:00:35]}  Ra7 {[%clk 0:02:09]} 25. Nxd6 {[%clk 0:00:35]}  Kf8 {[%clk 0:02:09]} 26. Nxe8 {[%clk 0:00:35]}  Rxb7 {[%clk 0:02:06]} 27. Nd6 {[%clk 0:00:34]}  Rc7 {[%clk 0:02:05]} 28. Nc4 {[%clk 0:00:34]}  Nf6 {[%clk 0:02:03]} 29. f4 {[%clk 0:00:31]}  Re7 {[%clk 0:01:59]} 30. Ne5 {[%clk 0:00:24]}  Rc7 {[%clk 0:01:57]} 31. c4 {[%clk 0:00:24]}  a5 {[%clk 0:01:55]} 32. d4 {[%clk 0:00:17]}  Rb7 {[%clk 0:01:55]} 33. Rb1 {[%clk 0:00:18]}  Ne4 {[%clk 0:01:55]} 34. Rb2 {[%clk 0:00:17]}  Nc3 {[%clk 0:01:53]} 35. Nc6 {[%clk 0:00:10]}  Nxa4 {[%clk 0:01:51]} 36. Ra2 {[%clk 0:00:10]}  Nc3 {[%clk 0:01:51]} 37. Nxa5 {[%clk 0:00:10]}  Re7 {[%clk 0:01:47]} 38. Rc2 {[%clk 0:00:09]}  Ne2+ {[%clk 0:01:46]} 39. Kf2 {[%clk 0:00:09]}  Nxd4 {[%clk 0:01:47]} 40. Rc3 {[%clk 0:00:07]}  Re2+ {[%clk 0:01:46]} 41. Kf1 {[%clk 0:00:08]}  Rxh2 {[%clk 0:01:44]} 42. b4 {[%clk 0:00:07]}  Rb2 {[%clk 0:01:42]} 43. b5 {[%clk 0:00:06]}  Ke7 {[%clk 0:01:39]} 44. Rd3 {[%clk 0:00:05]}  Ne6 {[%clk 0:01:34]} 45. Nc6+ {[%clk 0:00:06]}  Kf6 {[%clk 0:01:34]} 46. Rc3 {[%clk 0:00:05]}  Nc5 {[%clk 0:01:34]} 47. Re3 {[%clk 0:00:04]}  Ne4 {[%clk 0:01:32]} 48. Ke1 {[%clk 0:00:04]}  Rb1+ {[%clk 0:01:28]} 49. Ke2 {[%clk 0:00:04]}  Rb2+ {[%clk 0:01:29]} 50. Kd1 {[%clk 0:00:04]}  Ke6 {[%clk 0:01:22]} 51. Kc1 {[%clk 0:00:05]}  Rg2 {[%clk 0:01:18]} 52. b6 {[%clk 0:00:05]}  Rg1+ {[%clk 0:01:15]} 53. Kc2 {[%clk 0:00:05]}  Rg2+ {[%clk 0:01:14]} 54. Kb3 {[%clk 0:00:05]}  Rg1 {[%clk 0:01:15]} 55. Nb4 {[%clk 0:00:05]}  Rb1+ {[%clk 0:01:15]} 56. Ka4 {[%clk 0:00:04]}  Kd6 {[%clk 0:01:15]} 57. Kb5 {[%clk 0:00:05]}  Kd7 {[%clk 0:01:11]} 58. Rd3+ {[%clk 0:00:05]}  Kc8 {[%clk 0:01:10]} 59. c5 {[%clk 0:00:05]}  Rc1 {[%clk 0:01:08]} 60. c6 {[%clk 0:00:06]}  Rc5+ {[%clk 0:01:08]} 61. Ka6 {[%clk 0:00:05]}  Rc4 {[%clk 0:01:05]} 62. b7+ {[%clk 0:00:06]}  Kc7 {[%clk 0:01:02]} 63. Rd7+ {[%clk 0:00:06]}  Kb8 {[%clk 0:01:00]} 64. Rd8+ {[%clk 0:00:07]}  Kc7 {[%clk 0:01:01]} 65. b8=Q# {[%clk 0:00:07]} 1-0


[Site "https://www.chess.com"]